[Event "45th FIDE Womens Olympiad 2024"]
[Site "Budapest"]
[Date "2024.09.15"]
[Round "5.62"]
[White "Librelato, Kathie Goulart"]
[Black "Georgescu, Lena"]
[Result "0-1"]
[ECO "C70"]
[WhiteElo "2181"]
[BlackElo "2266"]
[Annotator "TA"]
[PlyCount "95"]
[EventDate "2024.09.05"]
[EventType "team-tourn"]
[EventCountry "HUN"]
[SourceTitle "playchess.com"]
[Source "ChessBase"]
[SourceQuality "1"]
[WhiteTeam "Brazil"]
[BlackTeam "Switzerland"]
[WhiteTeamCountry "BRA"]
[BlackTeamCountry "SUI"]
[TimeControl "40/5400+30:1800+30"]

{[%evp 12,95,26,39,53,46,47,31,44,29,27,24,79,0,0,-21,-22,-21,-27,-145,-138,-317,-318,-304,-302,-300,-292,-405,-404,-374,-384,-410,-403,-414,-401,-491,-498,-502,-499,-501,-502,-637,-607,-802,-791,-764,-681,-683,-679,-670,-666,-636,-606,-516,0,-501,-505,-578,-506,-576,-551,-713,-687,-662,-620,-753,-585,-737,-628,-709,-641,-729,-749,-598,-761,-756,-766,-712,-689,-759,-754,-1027,-884,-1060,-1047,-3169]} 1. e4 e5 2. Nf3 Nc6 3. Bb5 {[%cal Bf1b5,Bb5a4,Ba4b3][%mdl 32]} a6 4. Ba4 b5 5. Bb3 Na5 6. O-O d6 7. d4 exd4 8. Re1 Nxb3 9. axb3 c5 {White is slightly better.} 10. c3 {[%cal Bc2c3,Bc3d4][%mdl 32]} Bb7 11. cxd4 {next Nc3 is good for White.} Nf6 (11... Be7 $11) 12. Nh4 (12. Nc3 $16) 12... g6 $1 $11 13. Nc3 Bg7 14. e5 dxe5 15. Bg5 {Black keeps a firm grip on the game.} (15. Rxe5+ Kf8 16. Rxc5 b4 $15) (15. dxe5 $11 {remains equal.} Qxd1 16. Rxd1) 15... Qxd4 $17 16. Qxd4 $2 {[#]} (16. Nf3 $17 {was worth a try.} Qxd1 17. Raxd1) 16... cxd4 $19 17. Rxe5+ Kf8 18. Na2 Ne4 19. Re7 Rb8 ({Less strong is} 19... Nxg5 20. Rxb7 d3 21. Rd1 $19) 20. Rxe4 Bxe4 {A strong pair of Bishops.} 21. Nb4 h6 22. Bd2 Kg8 23. Nxa6 Ra8 24. Ra3 Kh7 25. Nc5 Bd5 26. g3 Rhc8 27. b4 Rxa3 28. bxa3 Re8 {[#] Strongly threatening ...Re2.} 29. Ng2 g5 {...Re2 is the strong threat.} 30. Nd3 Re2 31. Bc1 Ra2 32. Nge1 Re2 $2 (32... Kg6 $19 33. h3 Bc4) 33. Kf1 $2 {[%mdl 8192]} (33. Ng2 $1 $11 {and White has nothing to worry.} Rc2 34. Nge1) 33... Re8 {Black is clearly winning.} 34. f3 Kg6 35. Kf2 Bc4 36. h4 f5 37. hxg5 hxg5 38. Bd2 Bf6 39. Bc1 Re7 40. Bd2 Rh7 41. Kg2 {Inhibits Rh2+.} Ra7 42. Bc1 Re7 43. Kf2 {Prevents Re2+} Kf7 44. Bd2 Ke8 45. Bc1 Kd7 46. Bb2 Kc6 {Threatens to win with ...Re3.} 47. Nc1 Kd5 48. Kg2 {Weighted Error Value: White=0.62/Black=0.27 (precise) .  Loses game:     	White=1     	---        Mistake:       	White=2     	Black=1      Inaccurate:     	White=2     	---        OK:         	White=11    	Black=13     Best:        	White=1     	Black=1      Strong:       	---       	Black=1} 0-1

[Event "45th FIDE Womens Olympiad 2024"]
[Site "Budapest"]
[Date "2024.09.15"]
[Round "5.63"]
[White "Hakimifard, Ghazal"]
[Black "Alboredo, Julia"]
[Result "1/2-1/2"]
[ECO "B33"]
[WhiteElo "2192"]
[BlackElo "2127"]
[Annotator "TA"]
[PlyCount "117"]
[EventDate "2024.09.05"]
[EventType "team-tourn"]
[EventCountry "HUN"]
[SourceTitle "playchess.com"]
[Source "ChessBase"]
[SourceQuality "1"]
[WhiteTeam "Switzerland"]
[BlackTeam "Brazil"]
[WhiteTeamCountry "SUI"]
[BlackTeamCountry "BRA"]
[TimeControl "40/5400+30:1800+30"]

{[%evp 33,117,25,16,3,31,0,-7,0,0,-25,-23,-38,-30,-27,-4,-11,-17,-29,-13,-95,-25,-127,-123,-142,-87,-87,-88,-94,-32,-121,-84,-171,-89,-115,-111,-120,-125,-90,-73,-64,-14,-249,0,0,29,28,51,45,65,29,32,6,11,-8,-6,-7,0,0,0,0,0,0,0,0,0,0,0,0,0,0,0,0,0,0,0,0,0,0,0,0,0,0,0,0,0,0]} 1. e4 c5 2. Nf3 Nc6 3. d4 cxd4 4. Nxd4 Nf6 5. Nc3 e5 6. Ndb5 d6 7. Bg5 a6 8. Na3 b5 9. Nd5 Be7 10. Bxf6 Bxf6 11. c3 Ne7 12. Nxf6+ gxf6 13. c4 Qa5+ 14. Qd2 Qxd2+ 15. Kxd2 b4 {B33: Sicilian: Pelikan and Sveshnikov Variations.} 16. Nc2 a5 17. Ne3 f5 18. exf5 Bxf5 19. Nxf5 $146 ({Predecessor:} 19. a3 O-O 20. axb4 axb4 21. Bd3 Bg6 22. Bxg6 fxg6 23. f3 Nc6 24. Nd5 b3 25. Nc7 Rac8 26. Nb5 {1-0 Nikitenko,M (2377)-Neizvestnykh,V (2141) Nezhmetdinov Memorial 37th 2015 (5)}) 19... Nxf5 20. Bd3 Nd4 21. Rhe1 Rc8 22. Rac1 Rc5 23. Be4 Rg8 24. Kd3 Ke7 25. f4 Ne6 26. f5 (26. fxe5 $11 {keeps the balance.} Rxe5 (26... dxe5 27. g3 $15) 27. Bf3) 26... Nd4 (26... Nf4+ $17 27. Kd2 Nh5 (27... Nxg2 28. Rg1 $16)) 27. Rf1 {[#]} (27. Re3 $1 $11) 27... Kf6 $1 $17 28. Rce1 a4 (28... b3 $142 29. a3 Nc2) 29. Re3 $17 h5 30. Rh3 Rg5 (30... Rh8 $17) 31. Re3 (31. g4 $1 $15) 31... b3 (31... Nxf5 $2 32. Ref3 $18) 32. axb3 (32. a3 $17) 32... axb3 (32... Nxb3 $19 {...Rg4 would now be deadly.} 33. g3 Rc7) 33. Kc3 Rg8 34. Bd5 Rxd5 (34... Nxf5 $2 35. Ref3 $18 (35. Kxb3 Rxd5 36. cxd5 Kg5 $14)) 35. cxd5 Rxg2 (35... Nxf5 $2 36. Ref3 $18 (36. Kxb3 Kg5 $16)) 36. Rh3 Rc2+ (36... Nxf5 $2 37. Rhf3 $18 (37. Rxh5 Rg5 $18) (37. Kxb3 Kg5 $11)) ({Black should try} 36... Kg5 $1 $15 37. Rg3+ Rxg3+ 38. hxg3 Kg4 (38... Nxf5 39. Kxb3 Nxg3 40. Rg1 $11)) 37. Kd3 $2 {[#]} (37. Kb4 $11 {and White has nothing to worry.}) 37... Rxb2 $2 (37... Nxf5 38. Rxh5 e4+ 39. Kxe4 Rc4+ 40. Kd3 Rd4+ 41. Kc3 Rxd5 42. Kxb3 $16) (37... Ne2 $1 $19 {[%cal Re2f4] Strongly threatening ...Nf4+.} 38. Ke4 Nf4 (38... Rxb2 $2 39. Rh1 $19) 39. Rxf4 (39. Rxb3 $2 {loses.} Re2+ 40. Re3 Rxb2 $19) 39... Rc4+ (39... exf4 40. Rxb3 Kg5 41. Rb7 $17) 40. Kd3 Rxf4 41. Rxh5 Rd4+ (41... Rxf5 $2 42. Rh8 $19) 42. Ke2 Rxd5) 38. Rxh5 $11 Rg2 39. Rh6+ Kg5 $1 40. Rxd6 Nxf5 41. Rd8 Rxh2 42. Rg8+ Kf6 43. Kc4 b2 44. Kc3 e4 45. Rb8 e3 46. Rxb2 Rxb2 47. Kxb2 Ke5 48. Kc3 Ke4 49. Ra1 Nd6 50. Ra6 Nb5+ 51. Kc4 e2 52. Ra1 $1 Nd6+ 53. Kc5 Nf5 54. d6 Nxd6 55. Kxd6 f5 56. Re1 Ke3 57. Ke5 f4 58. Rxe2+ $1 Kxe2 59. Kxf4 1/2-1/2

[Event "45th FIDE Womens Olympiad 2024"]
[Site "Budapest"]
[Date "2024.09.15"]
[Round "5.64"]
[White "Tamarozi, Isabelle"]
[Black "Hryzlova, Sofiia"]
[Result "0-1"]
[ECO "C01"]
[WhiteElo "2059"]
[BlackElo "2188"]
[Annotator "TA"]
[PlyCount "56"]
[EventDate "2024.09.05"]
[EventType "team-tourn"]
[EventCountry "HUN"]
[SourceTitle "playchess.com"]
[Source "ChessBase"]
[SourceQuality "1"]
[WhiteTeam "Brazil"]
[BlackTeam "Switzerland"]
[WhiteTeamCountry "BRA"]
[BlackTeamCountry "SUI"]
[TimeControl "40/5400+30:1800+30"]

{[%evp 9,56,-6,-9,-11,10,2,7,5,0,0,8,-2,7,0,6,-6,31,0,11,-25,0,0,-6,-3,-20,-13,-14,-44,-31,-47,2,-3,0,-102,-109,-391,-393,-812,-790,-812,-818,-839,-880,-1484,-1458,-1588,-1534,-3711,-3351]} 1. e4 e6 2. d4 d5 3. exd5 exd5 4. c4 Nf6 5. Nf3 Bb4+ 6. Bd2 Qe7+ (6... Bxd2+ {simplifies} 7. Nbxd2 O-O 8. Be2 Bg4) 7. Be2 O-O 8. O-O {The position is equal.} dxc4 9. Bxc4 Bg4 10. Bg5 Nbd7 {[%cal Bb8d7,Bd7b6,Bb6d5][%mdl 32]} 11. a3 Ba5 12. Nc3 {Repels Qe4} c6 13. Qd3 (13. Re1 {simplifies} Bxf3 14. Rxe7 Bxd1 15. Rxd1 Rab8 16. Bb3) 13... Qd6 14. Rad1 (14. Bh4 $5) 14... Bc7 15. g3 Nb6 {[#] Strongly threatening ...Nxc4.} 16. Ba2 Nbd5 17. Bb1 {aiming for Nxd5.} g6 18. Ba2 (18. Rc1 {simplifies} Bf5 19. Qd2 Bxb1 20. Rxb1 Rfe8 21. Rbe1) 18... Kg7 19. Rfe1 {[%cal Oh2h3]} a5 (19... h6 $15 20. Bd2 Bf5) 20. Re5 Nxc3 21. bxc3 (21. Qxc3 $11 h6 22. Bf4) 21... Qxa3 $17 22. Qe3 $2 {[%mdl 8192] [#] This costs White the game.} Ng8 $19 ({Much less strong is} 22... Qxa2 23. Qf4 Bd8 (23... Bxe5 $2 24. dxe5 Nh5 25. Qxg4 $19) 24. Bxf6+ Bxf6 25. Qxg4) (22... Bxe5 $2 {too greedy.} 23. Qxe5 h6 24. Qxf6+ Kh7 25. Bxf7 $18) 23. Re7 $2 (23. Ra1) 23... Nxe7 {Black is clearly winning.} 24. Bxe7 Qxa2 25. d5 Rfe8 26. Re1 Qxd5 27. Nd4 Bd6 28. f3 Rxe7 {Weighted Error Value: White=1.12/Black=0.07 (flawless) .  Loses game:     	White=1     	---        Mistake:       	White=2     	Black=1      Inaccurate:     	White=3     	Black=1      OK:         	White=4     	Black=6      Best:        	White=2     	Black=2} 0-1

[Event "45th FIDE Womens Olympiad 2024"]
[Site "Budapest"]
[Date "2024.09.15"]
[Round "5.65"]
[White "Brunello, Marina"]
[Black "Mendoza, Shania Mae"]
[Result "1-0"]
[ECO "B36"]
[WhiteElo "2348"]
[BlackElo "2013"]
[Annotator "TA"]
[PlyCount "75"]
[EventDate "2024.09.05"]
[EventType "team-tourn"]
[EventCountry "HUN"]
[SourceTitle "playchess.com"]
[Source "ChessBase"]
[SourceQuality "1"]
[WhiteTeam "Italy"]
[BlackTeam "Philippines"]
[WhiteTeamCountry "ITA"]
[BlackTeamCountry "PHI"]
[TimeControl "40/5400+30:1800+30"]

{[%evp 27,75,51,44,47,30,-10,85,81,115,134,159,154,185,185,171,181,214,165,151,150,164,149,140,167,144,137,175,181,162,161,179,115,164,155,173,180,237,231,560,536,29991,29992,29994,29995,29995,29996,29996,29997,29997,29998]} 1. e4 c5 2. Nf3 g6 3. c4 Nc6 4. d4 cxd4 5. Nxd4 Nf6 6. Nc3 Nxd4 7. Qxd4 d6 8. Be3 Bg7 9. Be2 O-O 10. Qd2 Be6 11. O-O Qa5 12. Rac1 Rfc8 13. b3 a6 14. f4 {[%cal Bf2f4,Bf4f5][%mdl 32]} b5 {[%cal Rb5c4]} 15. f5 (15. cxb5 axb5 16. Bf3 Bg4 $15) 15... Bd7 16. Bg5 b4 {[#]} (16... bxc4 $11 {remains equal.} 17. Bxc4 Bb5 18. Nxb5 Qxd2 19. Bxd2 axb5) 17. Bxf6 $1 $16 {White is better.} bxc3 18. Bxc3 Qc5+ 19. Kh1 a5 20. Bxg7 Kxg7 21. Rc3 f6 22. Rh3 g5 {[#]} 23. e5 $1 {[%mdl 512] White is more active.} Bc6 (23... Qxe5 $2 {perishes.} 24. Re3 Ra7 25. Rxe5 $18) 24. exf6+ exf6 25. Bf3 Bxf3 26. Rhxf3 {[%cal Oh2h4]} ({But not} 26. gxf3 $6 Qxf5 27. Rg3 a4 $11) 26... a4 27. Rd3 {[%cal Bf3d3,Bd3d5,Bd5b5,Bb5b8][%mdl 32]} axb3 28. axb3 {[%cal Od3d5]} Re8 29. h3 ({Better is} 29. Rxd6 $18 {Hoping for Rd5.} Ra7 30. Rd5) 29... Ra6 (29... Ra3 $16 30. Rd5 (30. Rxd6 Rxb3 31. Rd7+ Re7 $16) 30... Qe3) 30. Rd5 $18 Qa3 31. Rb5 {[%cal Oh3h4] h4! would now be deadly.} Re7 (31... Ra7 $142 32. Rb6 Rd7) 32. Rd1 h5 $2 {[#]} (32... Rc6 33. Qd5 Qa6) 33. c5 $1 {[%mdl 512] Qd5 is the strong threat.} dxc5 {[%cal Bd6c5,Bc5c4][%mdl 32]} (33... Rf7 34. Qe2) 34. Qd8 {White mates.} c4 35. Rb8 (35. bxc4 Ra8 36. Qd5 Rae8 $18) 35... Kh6 36. Qh8+ Rh7 {[#]} 37. Qxh7+ $3 {[%mdl 512]} Kxh7 38. Rd7+ {Weighted Error Value: White=0.07 (flawless) /Black=0.60.  Mistake:       	White=1     	Black=4      Inaccurate:     	White=1     	Black=2      OK:         	White=8     	Black=2      Best:        	White=2     	Black=1      Strong:       	White=1     	---        Brilliant:      	White=1     	---} 1-0

[Event "45th FIDE Womens Olympiad 2024"]
[Site "Budapest"]
[Date "2024.09.15"]
[Round "5.66"]
[White "Frayna, Janelle Mae"]
[Black "Zimina, Olga"]
[Result "1/2-1/2"]
[ECO "A11"]
[WhiteElo "2216"]
[BlackElo "2302"]
[Annotator "TA"]
[PlyCount "85"]
[EventDate "2024.09.05"]
[EventType "team-tourn"]
[EventCountry "HUN"]
[SourceTitle "playchess.com"]
[Source "ChessBase"]
[SourceQuality "1"]
[WhiteTeam "Philippines"]
[BlackTeam "Italy"]
[WhiteTeamCountry "PHI"]
[BlackTeamCountry "ITA"]
[TimeControl "40/5400+30:1800+30"]

{[%evp 9,85,0,6,14,6,15,12,0,20,29,46,20,42,33,34,0,0,0,0,0,0,14,0,-4,-15,-13,-12,-5,10,14,15,0,0,2,4,7,0,0,0,0,0,0,0,6,13,4,8,2,9,3,7,0,0,2,20,28,21,21,47,57,50,40,54,18,20,10,10,10,18,10,10,10,16,0,39,10,13,0]} 1. c4 c6 2. Nf3 d5 3. g3 Bg4 4. Ne5 Bf5 5. Bg2 Nd7 6. Nxd7 Qxd7 7. cxd5 cxd5 8. Qb3 Nf6 9. Nc3 {[%cal Bb1c3,Bc3e4,Be4g5][%mdl 32]} e6 10. O-O Rc8 11. d3 d4 12. Ne4 Nd5 13. Ng5 Bc5 14. Bd2 {Repels a5} O-O 15. Rfc1 h6 16. Ne4 Be7 17. Rxc8 Rxc8 18. Rc1 Bg6 19. Rxc8+ Qxc8 20. Qc4 Qxc4 21. dxc4 {[%cal Bd3c4,Bc4c5][%mdl 32]} Nb6 22. c5 $1 Nc4 {[%cal Og6e4] [#] White must now prevent ...Bxe4!} 23. Bc1 f5 24. Nd2 Nxd2 25. Bxd2 Bxc5 26. Bxb7 $11 {[%mdl 4096] Endgame. KBB-KBB} Be8 27. b4 Bd6 28. f4 Bb5 29. Kf2 Kf7 30. e3 dxe3+ 31. Kxe3 Bc7 32. Bc3 g5 33. Bf3 gxf4+ 34. gxf4 a6 35. Bd1 Bf1 36. a4 Bd6 37. Bf3 Ke7 38. Bc6 Bc4 39. h4 Bf1 40. Bf3 Kf7 41. Bc6 {[#] Strongly threatening b5.} Ke7 42. Bd2 Kd8 43. Bc3 {Weighted Error Value: White=0.06 (flawless) /Black=0.04 (flawless) .  Inaccurate:     	White=2     	Black=1      OK:         	White=16    	Black=19     Best:        	White=1     	Black=1      Strong:       	White=1     	---} 1/2-1/2

[Event "45th FIDE Womens Olympiad 2024"]
[Site "Budapest"]
[Date "2024.09.15"]
[Round "5.67"]
[White "Gueci, Tea"]
[Black "Fronda, Jan Jodilyn"]
[Result "1/2-1/2"]
[ECO "B72"]
[WhiteElo "2199"]
[BlackElo "2165"]
[Annotator "TA"]
[PlyCount "117"]
[EventDate "2024.09.05"]
[EventType "team-tourn"]
[EventCountry "HUN"]
[SourceTitle "playchess.com"]
[Source "ChessBase"]
[SourceQuality "1"]
[WhiteTeam "Italy"]
[BlackTeam "Philippines"]
[WhiteTeamCountry "ITA"]
[BlackTeamCountry "PHI"]
[TimeControl "40/5400+30:1800+30"]

{[%evp 11,117,39,57,50,51,47,58,60,54,59,47,0,-6,-20,0,-12,-10,0,65,22,38,15,64,62,69,72,78,65,74,74,62,66,246,236,351,307,338,351,295,301,537,510,539,550,518,550,546,562,660,649,652,662,650,541,715,283,634,642,2243,432,400,242,239,166,170,183,215,220,6170,215,214,186,163,176,197,125,162,114,190,168,187,129,260,259,304,298,366,342,316,38,43,43,35,37,49,0,0,0,71,0,0,0,0,0,0,0,0,0]} 1. e4 c5 2. Nf3 d6 3. d4 cxd4 4. Nxd4 Nf6 5. Nc3 g6 6. Be3 a6 7. f3 b5 {[%cal Bb7b5,Bb5b4][%mdl 32]} 8. a4 b4 9. Na2 {White is slightly better.} e5 10. Nb3 d5 11. exd5 (11. Bg5 $1 $14) 11... Nxd5 $11 12. Bf2 Nc6 (12... Be6 $5) 13. Bd3 Be6 14. O-O Qg5 (14... Qc7 $11) 15. h4 Qd8 16. Qe1 Bg7 (16... Qc7 $11) 17. Nc5 $36 {[%mdl 2048] White has good play.} Qc8 18. Be4 {Black must now prevent Qd2.} Rb8 19. Rd1 {White is more active.} Nde7 20. Nxe6 Qxe6 21. Nc1 f5 $2 (21... O-O $14) 22. Bd3 $18 {[%cal Be4d3,Bd3a6,Ba6b5][%mdl 32]} Na5 {[#]} (22... O-O {was necessary.} 23. Nb3 (23. Bxa6 Ra8 $16) 23... Rfd8) 23. Nb3 $1 {[%mdl 512]} Nxb3 24. cxb3 Qxb3 25. Qe2 (25. Bxa6 $6 O-O 26. Bb5 Rbc8 $18) 25... e4 $2 (25... Rc8 26. Bxa6 Rc2) 26. Bxa6 (26. fxe4 Qxb2 27. Qxb2 (27. Bxa6 Qxe2 28. Bxe2 Rc8 $16) 27... Bxb2 28. Bxa6 Kf7 29. Bc4+ Kg7 $18) 26... Qxb2 27. Bb5+ ({Less strong is} 27. fxe4 Qxe2 28. Bxe2 Rc8 $18) 27... Kf8 28. Rd2 Qe5 29. fxe4 Bf6 30. Bd4 {This pair of bishops is nice.} Qe6 31. Bxf6 Qxf6 32. exf5 gxf5 33. Qc4 (33. Rd7 {[%cal Od7e7] And now Rxe7! would win.} Re8 34. Qe3) 33... Rg8 $2 (33... Kg7 34. Re1 (34. Qxb4 Rhd8 $18) 34... Rhc8 35. Qxb4 Ng8) 34. Qxb4 Kf7 35. Re1 (35. Rd6 $142 Qe5 36. Re1) 35... Rgd8 36. Rde2 Nd5 {[%cal Be7d5,Bd5f6,Bf6g4][%mdl 32]} 37. Qb2 Qxh4 38. Qe5 Nf6 39. Qxf5 {Re4 would kill now.} Rb7 $2 (39... Kg7 40. Re7+ Kh8) 40. Rf1 $2 (40. Re4 Qh6 41. Rg4) 40... Kg7 41. Qf2 Qxf2+ 42. Rexf2 Ng4 43. Re2 (43. Ra2 $18) 43... Rd6 44. Rfe1 (44. Ra1 $18) 44... Kf6 (44... Ra7 $16 45. Re7+ Rxe7 46. Rxe7+ Kh6) 45. Re4 h5 46. Be2 (46. Ra1 $18) 46... Kg5 (46... Kf5 $16 {is a better defense.}) 47. a5 Rb2 {[#]} 48. Ra1 $1 {Threatens to win with a6.} Rdd2 49. Bf1 Ra2 50. Ree1 (50. Ra4 $18 Rxa1 51. Rxa1) 50... Kf4 $14 51. a6 {a7 is the strong threat.} Kg3 {[%cal Rd2g2]} 52. Rxa2 (52. a7 $2 {leads to mate.} Rxg2+ 53. Bxg2 Rxg2+ 54. Kh1 Nf2#) 52... Rxa2 {[%mdl 4096] Endgame. KRB-KRN} 53. Be2 (53. Rb1 $14) 53... Ne3 $11 54. Bf3 Nxg2 {[#]} (54... Nc2 $11 55. Rc1 Nd4) 55. Bxg2 (55. Bd5 $1 $16 {[%cal Rd5a2]} Rxa6 56. Bxg2) 55... Rxg2+ {The position is equal.} 56. Kh1 {Intending Rg1 and mate.} Ra2 57. Re3+ Kf4 58. Re6 Kg3 {( -> ...Ra1+)} 59. Re3+ {Black escapes into a draw.   Weighted Error Value: White=0.55/Black=0.38.  Loses game:     	---       	Black=1      Missed win:     	White=1     	---        Mistake:       	White=7     	Black=9      Inaccurate:     	White=2     	Black=1      OK:         	White=21    	Black=14     Best:        	White=2     	Black=3      Strong:       	White=1     	---} 1/2-1/2

[Event "45th FIDE Womens Olympiad 2024"]
[Site "Budapest"]
[Date "2024.09.15"]
[Round "5.68"]
[White "Canino, Ruelle"]
[Black "Sala, Giulia"]
[Result "1/2-1/2"]
[ECO "A37"]
[WhiteElo "2004"]
[BlackElo "2115"]
[Annotator "TA"]
[PlyCount "200"]
[EventDate "2024.09.05"]
[EventType "team-tourn"]
[EventCountry "HUN"]
[SourceTitle "playchess.com"]
[Source "ChessBase"]
[SourceQuality "1"]
[WhiteTeam "Philippines"]
[BlackTeam "Italy"]
[WhiteTeamCountry "PHI"]
[BlackTeamCountry "ITA"]
[TimeControl "40/5400+30:1800+30"]

{[%evp 113,200,0,0,0,0,-185,-175,-237,-207,-194,-204,-294,-279,-1258,-1201,-1391,-1391,-1293,-1290,-1253,-1245,-1220,-1220,-1016,-1013,-684,-564,-433,-201,-437,-28,-29966,-29942,-11976,-1044,-29969,-29966,-29976,-29977,-29981,-29982,-29986,-29987,-29984,0,0,0,0,0,0,0,0,0,0,0,0,0,0,0,0,0,0,0,0,0,0,0,0,0,0,0,0,0,0,0,0,0,0,0,0,0,0,0,0,0,0,0,0,0]} 1. c4 c5 2. Nf3 Nc6 3. g3 g6 4. Bg2 Bg7 5. O-O e6 6. Nc3 Nge7 7. d3 d6 8. Bd2 O-O 9. a3 b6 10. Rb1 Bb7 11. b4 Qd7 12. e3 {A37: Symmetrical English vs ...g6: 4 Bg2 Bg7 5 Nf3.} Rab8 13. Ne2 $146 ({Predecessor:} 13. Na4 e5 14. Nc3 f5 15. Qa4 h6 16. Nd5 Qe8 17. Qc2 Nxd5 18. cxd5 Ne7 19. bxc5 bxc5 {1-0 Ghasi,A (2479)-Wells,P (2355) BCF-ch rapidplay 34th 2023 (10)}) 13... Rfd8 14. d4 cxd4 15. exd4 Nf5 16. Bc3 Nce7 17. Qd3 Rbc8 18. Ba1 Ba6 19. b5 Bb7 20. Rfc1 Rc7 21. Bc3 d5 22. c5 bxc5 23. Ba5 c4 24. Qc3 Nd6 25. Bxc7 Qxc7 26. Qb4 Qb8 27. a4 Nef5 28. a5 Ne4 29. a6 Bc8 30. Qa5 Qb6 31. Qxb6 axb6 32. Ne5 Bxe5 33. dxe5 Nc5 34. Rc2 Bd7 35. Ra2 Ra8 36. g4 Ne7 37. Nd4 Nd3 38. Re2 g5 39. Re3 Ng6 40. Nf3 h6 41. Rxd3 cxd3 42. Bf1 Nf4 43. Ne1 Kg7 44. Nxd3 Nxd3 45. Bxd3 f6 46. exf6+ Kxf6 47. Rc1 Ra7 48. f3 Ke5 49. Kf2 Kd6 50. Kg3 Ra8 51. f4 gxf4+ 52. Kxf4 e5+ 53. Ke3 e4 54. Be2 Ke5 55. Rc7 d4+ 56. Kd2 Be8 57. Bf1 $2 (57. Re7+ $18 Kd5 58. Bf1) 57... d3 $11 58. Re7+ Kd6 $1 59. Rh7 $2 (59. Rxe4 $11 Bxb5 60. Bxd3 Bxd3 61. Rd4+ (61. Kxd3 Rxa6 62. h4 b5 $11) 61... Kc7 62. Kxd3 (62. Rxd3 Rxa6 63. h3 Ra2+ 64. Kc3 Kc6 $11)) 59... Bxb5 $19 60. a7 (60. Ke3 $142) 60... Kc5 $19 61. Ke3 Bc6 62. Bg2 (62. Rc7 $142 Rd8 63. Kd2) 62... Rd8 $19 (62... d2 63. Kxd2 e3+ 64. Kxe3 Bxg2 65. Rxh6) 63. Rc7 $2 (63. Rxh6 Bb7 (63... d2 $2 64. Rxc6+ Kxc6 65. Bxe4+ Kc5 66. Bf3 $17) 64. Bf1 (64. Bxe4 $2 Bxe4 65. Kd2 Rd7 $19)) 63... d2 $19 64. Rxc6+ Kxc6 65. Bxe4+ Kc5 66. Bf3 d1=Q 67. Bxd1 Ra8 68. h4 Rxa7 69. Kf4 Rf7+ 70. Ke5 Rf1 (70... Re7+ $142 71. Kf6 Kd6) 71. Bb3 $2 (71. Bc2 Kc6 72. g5 hxg5 73. hxg5) 71... Rh1 $2 (71... Rg1 $19 72. Kf5 b5) 72. h5 $2 {[%mdl 8192]} (72. g5 $11) 72... Rf1 73. Bc2 Rf8 (73... b5 $142 74. Ke4 Rf2) 74. Ke6 b5 75. Ke7 Rf4 76. Bf5 b4 77. Kf6 b3 78. Kg7 {[#]} Rxf5 $2 (78... Kd5 $1 {[%mdl 512] mates} 79. Bg6 Rxg4 80. Kh7 Ke6 81. Kxh6 b2 82. Bh7 Kf6 83. Bd3 Rg1 84. Kh7 b1=Q (84... b1=B 85. Kh6 Ba2 86. Kh7 Bf7 87. Kh6 Rg5 88. Be2 Bxh5 89. Bxh5 Rg3 90. Be8 Rh3+ 91. Bh5 Rh4 92. Kh7 Rxh5+ 93. Kg8 Rh6 94. Kf8 Rh8#) 85. Bxb1 Rxb1 86. Kh8 Rh1 87. Kh7 Rxh5+ 88. Kg8 Rh6 89. Kf8 Rh8#) 79. gxf5 $11 b2 80. f6 $1 b1=Q (80... b1=B 81. f7 (81. Kxh6 Bf5 $18) 81... Kd5 82. f8=Q (82. f8=B Bc2 $11) 82... Kc4 83. Kxh6 (83. Qf7+ Kc3 84. Qf6+ Kc4 85. Qc6+ Kb3 86. Kxh6 Bd3 87. Kg7 Be2) 83... Bc2 84. Qc8+ Kd3 85. Kg7 (85. Qxc2+ Kxc2 86. Kg5 Kd3 87. h6 Ke4 88. h7 Ke3 89. h8=Q Kd3)) 81. f7 $1 Qb2+ 82. Kg8 Qg2+ 83. Kh8 Qf3 84. Kg7 Qc3+ 85. Kg8 Qg3+ 86. Kh7 Qf4 87. Kg7 Qe5+ (87... Qg5+ 88. Kh7) 88. Kh7 Qf5+ 89. Kg7 $1 Qg5+ 90. Kh7 Qe7 91. Kg8 $1 Qe6 (91... Qg5+ 92. Kh7) 92. Kg7 Qe5+ 93. Kh7 Qf5+ 94. Kg7 Qxh5 ({Much less strong is} 94... Qg5+ 95. Kh8 $15) 95. f8=Q+ Kd5 96. Qa8+ Kd4 97. Qa1+ Ke4 98. Qe1+ Kf5 99. Qf2+ Kg5 100. Qe3+ Kh4 1/2-1/2